bitfinex-derivatives/quotes_ETHF0:USTF0_20250427
["timestamp","ask_amount","ask_price","bid_price","bid_amount"]
[1745784450239,6.27714,1805.6,1805.5,1.6313]
[1745784450544,6.27714,1805.6,1805.5,2.73867]
[1745784452146,9.48494,1805.6,1805.5,2.73867]
[1745784454148,7.87614,1805.6,1805.5,2.73867]
[1745784459146,7.87614,1805.6,1805.5,1.6313]
[1745784459847,7.87614,1805.6,1805.5,2.73867]
[1745784460148,7.87614,1805.6,1805.5,1.6313]
[1745784461448,7.87614,1805.6,1805.5,2.73867]
[1745784462246,7.87614,1805.6,1805.5,1.6313]
[1745784466344,1.10737,1805.5,1805.4,1.6637]
[1745784466650,1.10761,1805.2,1805.1,1.1076]
[1745784466945,1.10761,1805.2,1805.1,3.5221]
[1745784467346,1.10761,1805.2,1805.1,2.4145]
[1745784467645,2.77821,1805.2,1805.1,2.4145]
[1745784468037,3.61851,1805.2,1805.1,2.4145]
[1745784468547,3.61851,1805.2,1805.0,0.8385]
[1745784468548,1.10761,1805.1,1805.0,0.8385]
[1745784468847,6.05341,1805.1,1805.0,0.8385]
[1745784469741,6.05341,1805.1,1805.0,2.4807]
[1745784474446,6.05341,1805.1,1805.0,1.6422]
[1745784474851,1.10774,1804.9,1804.8,1.89314]
[1745784475046,1.10774,1804.9,1804.8,3.46244]
[1745784475249,4.31554,1804.9,1804.8,2.3547]
[1745784475551,5.15664,1804.9,1804.8,2.3547]
[1745784475753,6.87674,1804.9,1804.8,2.3547]
[1745784476555,6.87674,1804.9,1804.8,0.7854]
[1745784478053,1.1078,1804.8,1804.7,2.4233]
[1745784478253,2.8156,1804.8,1804.7,2.4233]
[1745784480055,2.8156,1804.8,1804.7,1.5693]
[1745784483452,1.10792,1804.6,1804.5,0.7901]
[1745784483760,4.31572,1804.6,1804.5,2.4866]
[1745784484156,5.99292,1804.6,1804.5,2.4866]
[1745784485564,4.31572,1804.6,1804.5,3.59458]
[1745784486162,4.31572,1804.6,1804.5,2.4866]
[1745784486659,5.88822,1804.6,1804.5,2.4866]
[1745784489557,1.10821,1804.2,1804.1,1.10819]
[1745784489752,1.10823,1804.1,1804.0,1.92734]
[1745784489969,1.10823,1804.1,1804.0,1.92735]
[1745784490159,1.10823,1804.1,1804.0,5.64935]
[1745784490354,4.31601,1804.2,1804.1,1.10823]
[1745784491265,3.2078,1804.2,1804.1,1.10823]
[1745784491469,4.31596,1804.2,1804.1,1.10823]
[1745784491767,3.2078,1804.2,1804.1,1.10823]
[1745784492069,4.31596,1804.2,1804.1,1.10823]
[1745784492869,4.31596,1804.2,1804.1,3.63113]
[1745784494762,3.2078,1804.2,1804.1,3.63113]
[1745784496164,4.31596,1804.2,1804.1,3.63113]
[1745784509983,3.2078,1804.2,1804.1,3.63113]
[1745784510188,4.31596,1804.2,1804.1,3.63113]
[1745784510784,3.546,1804.4,1804.1,2.5229]
[1745784510785,3.2078,1804.4,1804.1,2.5229]
[1745784511082,3.2078,1804.6,1804.5,1.10798]
[1745784511784,3.2078,1804.6,1804.5,2.70738]
[1745784512184,3.2078,1804.6,1804.5,6.42938]
[1745784513785,3.2078,1805.0,1804.9,1.10774]
[1745784514086,4.3155,1805.0,1804.6,7.64361]
[1745784514283,4.3155,1805.0,1804.9,1.10774]
[1745784514582,3.2078,1805.0,1804.9,1.10774]
[1745784515086,3.2078,1805.0,1804.9,4.82974]
[1745784518292,3.2078,1805.0,1804.9,1.10774]
[1745784521191,3.2078,1805.0,1804.9,4.82974]
[1745784522286,3.2078,1805.0,1804.9,1.10774]
[1745784523089,3.2078,1805.0,1804.9,4.82974]
[1745784524994,9.51156,1805.1,1805.0,1.10767]
[1745784526592,9.51156,1805.1,1805.0,1.38467]
[1745784527599,9.51156,1805.1,1805.0,0.277]
[1745784529390,9.51156,1805.1,1805.0,1.38467]
[1745784530199,9.51156,1805.1,1805.0,0.277]
[1745784531399,9.51156,1805.1,1805.0,1.38467]
[1745784541005,9.51156,1805.1,1805.0,0.277]
[1745784542905,2.76929,1805.0,1804.7,1.10784]
[1745784543105,1.10786,1804.8,1804.7,1.10784]
[1745784543313,1.10786,1804.7,1804.6,3.542]
[1745784543509,5.89636,1804.7,1804.6,3.542]
[1745784543811,5.89636,1804.7,1804.6,1.1079]
[1745784545007,4.7885,1804.7,1804.6,1.1079]
[1745784545715,5.89636,1804.7,1804.6,1.1079]
[1745784547522,1.10792,1804.6,1804.5,3.51094]
[1745784547724,2.83682,1804.6,1804.5,3.51094]
[1745784548415,1.7289,1804.6,1804.2,5.97821]
[1745784548620,1.7289,1804.5,1804.4,1.10804]
[1745784548821,2.83688,1804.5,1804.4,2.81414]
[1745784549215,1.7289,1804.5,1804.4,2.81414]
[1745784549924,4.31571,1804.7,1804.6,1.10792]
[1745784551118,1.10792,1804.6,1804.5,2.81403]
[1745784551320,2.81362,1804.6,1804.5,2.81403]
[1745784551824,1.10798,1804.5,1804.4,1.10799]
[1745784552121,3.2078,1803.8,1803.1,0.27722333]
[1745784552423,4.31658,1803.2,1803.1,0.27722333]
[1745784552616,7.86558,1803.2,1803.1,0.27722333]
[1745784553024,8.32365304,1803.2,1803.1,0.27722333]
[1745784553215,7.38787304,1803.2,1803.1,0.27722333]
[1745784553518,10.93684043,1803.2,1803.1,0.27722333]
[1745784553820,12.59744043,1803.2,1803.1,0.27722333]
[1745784554215,9.98422043,1803.2,1803.1,0.27722333]
[1745784554414,8.87544043,1803.2,1803.1,0.27722333]
[1745784554614,9.98422043,1803.2,1803.1,0.27722333]
[1745784555321,9.98267059,1803.2,1803.1,0.27722333]
[1745784556619,8.87389059,1803.2,1803.1,0.27722333]
[1745784556918,7.21329059,1803.2,1803.1,1.38606333]
[1745784557324,7.21429059,1803.2,1803.1,1.38606333]
[1745784557925,7.21429059,1803.2,1803.1,2.23516333]
[1745784559029,6.7578,1803.2,1803.1,2.23516333]
[1745784559231,7.21297546,1803.2,1803.1,2.23516333]
[1745784565133,7.21221998,1803.2,1803.1,3.89966333]
[1745784565329,8.32099998,1803.2,1803.1,2.79082333]
[1745784565535,8.32099998,1803.2,1803.1,0.27722333]
[1745784565536,9.99999998,1803.2,1803.1,0.27722333]
[1745784566628,9.99999998,1803.2,1803.1,1.38606333]
[1745784566933,10.00001735,1803.2,1803.1,1.38606333]
[1745784567335,10.00014261,1803.2,1803.1,0.27722333]
[1745784567839,10.00014261,1803.2,1803.1,1.38606333]
[1745784568132,10.00014261,1803.2,1803.1,0.27722333]
[1745784568525,1.10896,1802.9,1802.8,2.806]
[1745784568728,3.66250008,1802.9,1802.8,2.80603]
[1745784568926,7.37150008,1802.9,1802.8,2.80603]
[1745784569125,9.03660008,1802.9,1802.8,6.52803]
[1745784569326,10.14560008,1802.9,1802.4,5.98096]
[1745784569535,2.11980008,1802.8,1802.7,1.10903]
[1745784570236,2.11980008,1802.8,1802.7,4.83103]
[1745784570826,3.22883008,1802.8,1802.7,3.722]
[1745784571234,1.10909,1802.7,1802.6,2.7851]
[1745784571428,6.43669008,1802.7,1802.6,2.7851]
[1745784571628,5.32760008,1802.7,1802.6,2.7851]
[1745784572331,6.43669008,1802.7,1802.6,2.7851]
[1745784572532,5.32760008,1802.7,1802.6,2.7851]
[1745784572732,6.43669008,1802.7,1802.6,2.7851]
[1745784573133,5.32760008,1802.7,1802.6,1.676]
[1745784573435,6.43669008,1802.7,1802.6,2.78515]
[1745784573830,5.32760008,1802.7,1802.6,2.78515]
[1745784574442,6.43669008,1802.7,1802.6,2.78515]
[1745784574735,5.32760008,1802.7,1802.6,2.78515]
[1745784574939,3.66250008,1802.7,1802.6,2.78515]
[1745784576435,3.66390281,1802.7,1802.6,2.78515]
[1745784577437,3.66429723,1802.7,1802.6,2.78515]
[1745784577738,6.9178,1803.3,1803.2,1.10878]
[1745784578240,9.63392,1803.3,1803.2,4.83078]
[1745784580144,9.63392,1803.3,1803.2,1.10878]
[1745784580444,8.5252,1803.3,1803.0,3.722]
[1745784580745,3.2078,1803.1,1803.0,6.403]
[1745784580939,3.2078,1803.1,1803.0,4.8309]
[1745784582545,3.2078,1803.1,1803.0,9.8309]
[1745784584347,3.2078,1803.1,1803.0,4.8309]
[1745784589846,3.6601545,1803.1,1803.0,4.8309]
[1745784591245,0.4523545,1803.1,1803.0,4.8309]
[1745784592044,3.2078,1803.3,1803.2,1.10878]
[1745784592350,3.6601067,1803.3,1803.2,1.10878]
[1745784593248,3.6601067,1803.3,1803.2,4.83078]
[1745784595944,5.28042749,1803.3,1803.2,4.83078]
[1745784598051,5.28040235,1803.3,1803.2,4.83078]
[1745784599552,2.07260235,1803.3,1803.2,3.722]
[1745784599752,12.22812235,1803.3,1803.2,3.722]
[1745784599952,12.22808942,1803.3,1803.2,3.722]
[1745784600248,12.22808942,1803.3,1803.2,1.10878]
[1745784600249,12.22812942,1803.3,1803.2,1.10878]
[1745784600546,11.11936942,1803.3,1803.2,1.10878]
[1745784600753,12.22808942,1803.3,1803.2,1.10878]
[1745784600954,11.11936942,1803.3,1803.2,1.10878]
[1745784601254,11.11939965,1803.3,1803.2,1.10878]
[1745784601453,11.11939965,1803.3,1803.1,1.1088]
[1745784601654,2.89409965,1803.2,1803.1,1.1088]
[1745784602961,4.00287965,1803.2,1803.1,1.1088]
[1745784603253,2.89436938,1803.2,1803.1,1.1088]
[1745784603855,5.71416938,1803.2,1803.1,1.1088]
[1745784604044,2.02916938,1803.2,1803.1,2.7836]
[1745784605047,2.02957605,1803.2,1803.1,2.7836]
[1745784605350,0.45267605,1803.2,1803.1,2.7836]
[1745784608356,2.06507605,1803.2,1803.1,2.7836]
[1745784612957,2.06418328,1803.2,1803.1,2.7836]
[1745784614761,2.06418226,1803.2,1803.1,2.7836]
[1745784616760,2.06417329,1803.2,1803.1,2.7836]
[1745784618664,2.06415215,1803.2,1803.1,2.7836]
[1745784618863,0.45175215,1803.2,1803.1,2.7836]
[1745784620559,3.2078,1803.3,1803.1,1.6748]
[1745784620764,3.2078,1803.3,1803.2,4.44708]
[1745784620966,3.65953947,1803.3,1803.2,4.44708]
[1745784621168,3.65953947,1803.3,1803.2,8.16908]
[1745784622471,4.76825947,1803.3,1803.2,3.722]
[1745784622672,4.76821702,1803.3,1803.2,3.722]
[1745784624169,3.65949702,1803.3,1803.2,4.83078]
[1745784624561,5.35977671,1803.3,1803.2,4.83078]
[1745784626571,5.35974384,1803.3,1803.2,4.83078]
[1745784627266,6.46846384,1803.3,1803.2,4.83078]
[1745784630270,5.35974384,1803.3,1803.2,4.83078]
[1745784630573,5.35977265,1803.3,1803.2,4.83078]
[1745784635473,6.46849265,1803.3,1803.2,3.722]
[1745784635670,11.46849265,1803.3,1803.2,3.722]
[1745784636174,1.10878,1803.2,1803.1,1.10883]
[1745784636480,7.42415716,1803.2,1803.1,1.10883]
[1745784637575,10.63195716,1803.2,1803.1,1.10883]
[1745784639179,9.81505716,1803.2,1803.1,2.81193]
[1745784644084,9.81447219,1803.2,1803.1,2.81193]
[1745784646582,6.60667219,1803.2,1803.1,2.81193]
[1745784646782,9.81447219,1803.2,1803.1,2.81193]
[1745784648183,9.81449721,1803.2,1803.1,2.81193]
[1745784650082,10.92332367,1803.2,1803.1,2.81193]
[1745784650982,10.47198,1803.2,1803.1,2.81193]
[1745784651182,1.10884,1803.1,1803.0,3.722]
[1745784651477,3.21021078,1803.1,1803.0,3.722]
[1745784651678,4.04291078,1803.1,1803.0,3.722]
[1745784651983,4.04286897,1803.1,1803.0,3.722]
[1745784652183,1.10896,1802.9,1802.8,1.10898]
[1745784652386,4.76808897,1802.9,1802.8,1.10898]
[1745784653186,4.76808897,1802.9,1802.8,6.51218]
[1745784653582,4.76808897,1802.9,1802.8,4.83098]
[1745784653785,5.59098897,1802.9,1802.8,4.83098]
[1745784655088,5.59065126,1802.9,1802.8,4.83098]
[1745784655890,9.19656836,1802.9,1802.8,3.722]
[1745784657983,2.77262,1802.8,1802.1,3.2078]
[1745784658188,2.77262,1802.8,1802.2,1.10934]
[1745784658189,3.2078,1802.3,1802.2,1.10934]
[1745784658388,3.65870836,1802.3,1802.2,1.10934]
[1745784659093,3.65870836,1802.3,1802.2,4.83134]
[1745784659283,3.65870836,1802.3,1802.2,3.722]
[1745784659587,3.65870836,1802.3,1802.2,4.83139]
[1745784659787,3.65775353,1802.3,1802.2,4.83139]
[1745784661090,5.26545353,1802.3,1802.2,4.83139]
[1745784661287,5.26546807,1802.3,1802.2,4.83139]
[1745784663098,5.26507389,1802.3,1802.2,4.83139]
[1745784664393,3.65724826,1802.3,1802.2,4.83139]
[1745784668902,3.65702533,1802.3,1802.2,4.83139]
[1745784672910,3.2078,1802.8,1802.3,2.77334]
[1745784673110,3.2078,1802.8,1802.7,1.10909]
[1745784673310,3.2078,1802.8,1802.6,1.10912]
[1745784673511,1.1091,1802.7,1802.6,1.10912]
[1745784673704,2.7534,1802.7,1802.6,1.90362]
[1745784674311,1.6443,1802.7,1802.6,1.90362]
[1745784674611,1.6443,1802.7,1802.6,3.59832]
[1745784678514,2.75339,1802.7,1802.6,3.59832]
[1745784678816,1.6443,1802.7,1802.6,3.59832]
[1745784679716,2.75339,1802.7,1802.6,3.59832]
[1745784679909,1.6443,1802.7,1802.6,3.59832]
[1745784680305,1.64026766,1802.7,1802.6,3.59832]
[1745784682612,2.74935766,1802.7,1802.6,3.59832]
[1745784682915,1.64026766,1802.7,1802.6,3.59832]
[1745784685021,2.08430426,1802.7,1802.6,3.59832]
[1745784685515,0.4440366,1802.7,1802.6,3.59832]
[1745784686617,4.31688,1802.8,1802.7,1.10909]
[1745784686919,6.46544085,1802.8,1802.7,3.63579]
[1745784687217,6.46539085,1802.8,1802.7,7.35779]
[1745784687416,5.35636085,1802.8,1802.7,7.35779]
[1745784689227,3.65186085,1802.8,1802.7,7.35779]
[1745784690318,5.23516085,1802.8,1802.7,7.35779]
[1745784690517,5.2350797,1802.8,1802.7,7.35779]
[1745784694527,5.23516143,1802.8,1802.7,7.35779]
[1745784697224,5.23516143,1802.8,1802.7,4.83109]
[1745784697428,13.00780143,1802.8,1802.3,3.2078]
[1745784697627,1.10925,1802.5,1802.4,1.10927]
[1745784697928,1.55331143,1802.5,1802.4,1.10927]
[1745784698130,1.55331143,1802.5,1802.4,3.722]
[1745784698323,3.24951143,1802.5,1802.4,4.83127]
[1745784699935,2.14026143,1802.5,1802.4,4.83127]
[1745784700432,2.14025316,1802.5,1802.4,4.83127]
[1745784700636,2.14025316,1802.5,1802.4,7.35717]
[1745784701432,2.14025316,1802.5,1802.4,8.22027]
[1745784702132,0.44405316,1802.5,1802.4,8.22027]
[1745784702435,3.602,1802.6,1802.5,1.10921]
[1745784702633,4.04604726,1802.6,1802.5,2.81191]
[1745784703132,4.04604726,1802.6,1802.5,6.53391]
[1745784703922,0.44404726,1802.6,1802.5,6.53391]
[1745784704731,5.2867,1802.8,1802.7,1.10909]
[1745784704931,2.12875105,1802.8,1802.7,1.10909]
[1745784705133,2.12875105,1802.8,1802.7,4.83109]
[1745784705432,2.12875105,1802.8,1802.7,6.43969]
[1745784707629,3.2078,1803.0,1802.9,1.10896]
[1745784707829,4.3167,1803.0,1802.9,1.10896]
[1745784708032,6.0391,1803.0,1802.9,1.10896]
[1745784708234,6.0391,1803.0,1802.9,4.83096]
[1745784716043,6.0391,1803.0,1802.9,3.722]
[1745784717744,6.0391,1803.0,1802.9,4.83096]
[1745784719549,6.47620944,1803.0,1802.9,4.83096]
[1745784719750,6.47620944,1803.0,1802.9,3.722]
[1745784720051,6.47621366,1803.0,1802.9,3.722]
[1745784721350,6.47618603,1803.0,1802.9,3.722]
[1745784723454,3.26838603,1803.0,1802.9,3.722]
[1745784723654,6.47618603,1803.0,1802.9,3.722]
[1745784724156,6.47618603,1803.0,1802.9,3.03054972]
[1745784725258,1.10898,1802.9,1802.8,1.10897]
[1745784725445,1.54606603,1802.9,1802.8,1.10897]
[1745784725650,3.21436603,1802.9,1802.8,1.10897]
[1745784725850,3.21436603,1802.9,1802.8,1.91787]
[1745784726158,3.21436603,1802.9,1802.8,5.63987]
[1745784726550,0.43708603,1802.9,1802.8,6.43017]
[1745784727254,7.89475,1803.0,1802.9,1.10896]
[1745784727463,8.33199967,1803.0,1802.9,2.74136]
[1745784728256,8.33199967,1803.0,1802.9,6.46336]
[1745784729061,7.89475,1803.0,1802.9,6.46336]
[1745784729258,8.33193283,1803.0,1802.9,6.46336]
[1745784730564,8.33188283,1803.0,1802.9,6.46336]
[1745784730762,7.22298283,1803.0,1802.9,6.46336]
[1745784731162,7.2232321,1803.0,1802.9,6.46336]
[1745784731764,3.6452321,1803.0,1802.9,6.46336]
[1745784731964,0.4374321,1803.0,1802.9,6.46336]
[1745784735561,0.43770663,1803.0,1802.9,6.46336]
[1745784738467,1.54660663,1803.0,1802.9,5.3544]
[1745784738869,1.5465258,1803.0,1802.9,5.3544]
[1745784739166,1.5465258,1803.0,1802.9,1.6324]
[1745784739472,3.1175258,1803.0,1802.9,1.6324]
[1745784739661,1.10896,1802.9,1802.8,2.7082]
[1745784739956,3.1437858,1802.9,1802.8,2.7082]
[1745784740170,3.1437858,1802.9,1802.8,6.4302]
[1745784740764,2.70616,1802.9,1802.8,6.4302]
[1745784740970,3.1437966,1802.9,1802.8,6.4302]
[1745784742768,3.14376726,1802.9,1802.8,5.3212]
[1745784742964,3.14376381,1802.9,1802.8,5.3212]
[1745784744072,3.14376381,1802.9,1802.8,6.43023]
[1745784744666,3.14375266,1802.9,1802.8,6.43023]
[1745784745065,0.43759329,1802.9,1802.8,6.43023]
[1745784745464,1.54655329,1802.9,1802.8,6.43023]
[1745784746373,3.20515329,1802.9,1802.8,6.43023]
[1745784746971,3.20514677,1802.9,1802.8,6.43023]
[1745784748865,2.76756,1802.9,1802.8,6.43023]
[1745784749072,3.20516606,1802.9,1802.8,6.43023]
[1745784749769,0.43760606,1802.9,1802.8,6.43023]
[1745784749975,5.1677,1803.2,1803.1,1.10884]
[1745784750171,3.562,1803.2,1803.1,1.10884]
[1745784751174,4.67078,1803.2,1803.1,2.79354]
[1745784751977,4.67078,1803.2,1803.1,4.50794]
[1745784752368,7.87858,1803.2,1803.1,4.50794]
[1745784753069,13.382,1803.2,1803.0,3.722]
[1745784753272,4.38934,1803.1,1803.0,3.722]
[1745784754066,1.1089,1803.0,1802.9,1.91852]
[1745784754266,2.7211,1803.0,1802.9,1.91852]
[1745784754676,1.6122,1803.0,1802.9,1.91852]
[1745784754876,1.6122,1803.0,1802.9,2.70692]
[1745784755172,1.6122,1803.0,1802.9,6.42892]
[1745784758278,2.7211,1803.0,1802.9,6.42892]
[1745784759578,2.7211,1803.0,1802.9,3.722]
[1745784760178,2.7211,1803.0,1802.9,4.83096]
[1745784761683,6.2831,1803.0,1802.9,4.83096]
[1745784761876,6.71416893,1803.0,1802.9,5.63926]
[1745784762078,6.71416893,1803.0,1802.9,6.49726]
[1745784762581,6.71418691,1803.0,1802.9,6.49726]
[1745784763374,5.60528691,1803.0,1802.9,6.49726]
[1745784764682,3.99321553,1803.0,1802.9,6.49726]
[1745784764883,5.10212077,1803.0,1802.9,6.49726]
[1745784765181,3.99322077,1803.0,1802.9,6.49726]
[1745784766684,3.99324875,1803.0,1802.9,6.49726]
[1745784766877,5.10214875,1803.0,1802.9,6.49726]
[1745784768583,5.10216033,1803.0,1802.9,6.49726]
[1745784769185,6.83576033,1803.0,1802.9,6.49726]
[1745784769790,3.99326033,1803.0,1802.9,6.49726]
[1745784770585,3.99321238,1803.0,1802.9,6.49726]
[1745784771687,5.10211238,1803.0,1802.9,6.49726]
[1745784771879,3.99321238,1803.0,1802.9,6.49726]
[1745784772488,5.10211238,1803.0,1802.9,6.49726]
[1745784773389,3.99321238,1803.0,1802.9,6.49726]
[1745784776385,3.562,1803.0,1802.9,6.49726]
[1745784776595,3.99329243,1803.0,1802.9,6.49726]
[1745784778086,0.43129243,1803.0,1802.9,6.49726]
[1745784778384,6.7648,1803.1,1803.0,1.1089]
[1745784778692,0.43136945,1803.1,1803.0,2.7387]
[1745784779091,0.43136945,1803.1,1803.0,6.4607]
[1745784780389,1.10879,1803.2,1803.1,1.10884]
[1745784780589,1.10884,1803.1,1803.0,6.46067]
[1745784780790,1.54021346,1803.1,1803.0,6.46067]
[1745784780993,3.16411346,1803.1,1803.0,6.46067]
[1745784781395,3.16411346,1803.1,1803.0,3.722]
[1745784781694,3.16413266,1803.1,1803.0,3.722]
[1745784782089,1.1089,1803.0,1802.9,1.10892]
[1745784782285,3.16419266,1803.0,1802.9,1.10892]
[1745784783193,2.05529266,1803.0,1802.9,6.44942]
[1745784783589,3.16415432,1803.0,1802.9,6.44942]
[1745784785595,3.16414278,1803.0,1802.9,6.44942]
[1745784786002,2.05524278,1803.0,1802.9,5.3405]
[1745784786789,3.16414278,1803.0,1802.9,6.44946]
[1745784787500,3.1641385,1803.0,1802.9,6.44946]
[1745784789402,3.16413672,1803.0,1802.9,6.44946]
[1745784793606,2.05523672,1803.0,1802.9,6.44946]
[1745784794002,0.43133672,1803.0,1802.9,6.44946]
[1745784797307,9.52819,1803.1,1803.0,1.1089]
[1745784797606,9.52819,1803.1,1803.0,3.5749]
[1745784797607,9.95965637,1803.1,1803.0,3.5749]
[1745784798108,9.95965637,1803.1,1803.0,8.1359]
[1745784798307,8.85076637,1803.1,1803.0,8.1359]
[1745784798507,9.95960637,1803.1,1803.0,8.1359]
[1745784798707,8.85076637,1803.1,1803.0,8.1359]
[1745784798912,9.95960637,1803.1,1803.0,8.1359]
[1745784799209,8.8507628,1803.1,1803.0,8.1359]
[1745784800110,7.1962628,1803.1,1803.0,8.1359]
[1745784800408,3.63926419,1803.1,1803.0,8.1359]
[1745784800807,0.43146419,1803.1,1803.0,8.1359]
[1745784801209,3.2078,1803.3,1803.2,1.10878]
[1745784801411,4.74795776,1803.3,1803.2,1.10878]
[1745784801603,3.63923776,1803.3,1803.2,1.10878]
[1745784802008,4.74795776,1803.3,1803.2,1.10878]
[1745784802209,4.74795776,1803.3,1803.2,4.83078]
[1745784802411,3.63923776,1803.3,1803.2,4.83078]
[1745784802708,4.74795776,1803.3,1803.2,4.83078]
[1745784803108,4.74795776,1803.3,1803.2,1.10878]
[1745784803312,5.22103776,1803.3,1803.2,1.10878]
[1745784804112,5.22103776,1803.3,1803.2,4.83078]
[1745784804299,6.32975776,1803.3,1803.2,4.83078]
[1745784804504,5.22103776,1803.3,1803.2,4.83078]
[1745784805117,5.22063315,1803.3,1803.2,4.83078]
[1745784805412,2.01283315,1803.3,1803.2,4.83078]
[1745784806204,0.43103315,1803.3,1803.2,4.83078]
[1745784807006,3.557,1803.5,1803.4,1.10866]
[1745784807312,3.98788155,1803.5,1803.4,1.10866]
[1745784807809,3.98788155,1803.5,1803.4,2.70236]
[1745784808113,0.43088155,1803.5,1803.4,6.42436]
[1745784812813,1.7272,1803.6,1803.5,1.10859]
[1745784813118,2.15730353,1803.6,1803.5,2.73879]
[1745784813516,3.26583353,1803.6,1803.5,2.73879]
[1745784813816,2.15730353,1803.6,1803.5,1.10859]
[1745784814009,3.80630353,1803.6,1803.5,1.10859]
[1745784814206,2.15730353,1803.6,1803.5,1.10859]
[1745784814809,2.15719476,1803.6,1803.5,1.10859]
[1745784815317,2.15719476,1803.6,1803.5,4.83059]
[1745784816710,2.15713909,1803.6,1803.5,4.83059]
[1745784817212,3.26566909,1803.6,1803.5,4.83059]
[1745784818320,6.47346909,1803.6,1803.5,4.83059]
[1745784819219,1.10863,1803.5,1803.4,1.10862]
[1745784819425,3.17256909,1803.5,1803.4,1.10862]
[1745784820023,3.17256909,1803.5,1803.4,2.71742]
[1745784820216,2.06393909,1803.5,1803.4,6.43942]
[1745784820521,0.42993909,1803.5,1803.4,6.43942]
[1745784822619,5.95034,1803.6,1803.5,1.10859]
[1745784822820,6.3805219,1803.6,1803.5,1.10859]
[1745784823324,6.3805219,1803.6,1803.5,4.83059]
[1745784824324,6.3805219,1803.6,1803.5,1.10859]
[1745784824620,6.38064623,1803.6,1803.5,1.10859]
[1745784824925,6.38064481,1803.6,1803.5,1.10859]
[1745784826625,6.38081338,1803.6,1803.5,1.10859]
[1745784827425,6.38080338,1803.6,1803.5,1.10859]
[1745784827626,6.38080338,1803.6,1803.5,1.94489]
[1745784828128,6.38080338,1803.6,1803.5,5.66689]
[1745784828526,6.38099199,1803.6,1803.5,5.66689]
[1745784829328,5.27246199,1803.6,1803.5,5.66689]
[1745784830420,6.38099199,1803.6,1803.5,5.66689]
[1745784830727,6.38134584,1803.6,1803.5,5.66689]
[1745784831229,5.27281584,1803.6,1803.5,5.66689]
[1745784831825,6.38134584,1803.6,1803.5,5.66689]
[1745784832429,6.38146437,1803.6,1803.5,5.66689]
[1745784834025,5.27293437,1803.6,1803.5,5.66689]
[1745784834329,6.38146437,1803.6,1803.5,5.66689]
[1745784834627,6.38162662,1803.6,1803.5,5.66689]
[1745784836227,6.38162662,1803.6,1803.5,1.94489]
[1745784836430,6.38177256,1803.6,1803.5,1.94489]
[1745784836630,3.17397256,1803.6,1803.5,1.94489]
[1745784836834,6.38177256,1803.6,1803.5,1.94489]
[1745784839337,3.17397256,1803.6,1803.5,1.94489]
[1745784839830,3.17397256,1803.6,1803.5,1.10859]
[1745784840033,1.10876,1803.3,1803.2,1.10875]
[1745784840338,4.74801573,1803.3,1803.2,1.10878]
[1745784840725,6.32421573,1803.3,1803.2,1.10878]
[1745784841626,6.32421967,1803.3,1803.2,1.10878]
[1745784844429,5.21545967,1803.3,1803.2,1.10878]
[1745784844638,1.10878,1803.2,1803.1,2.81831]
[1745784844936,3.26623967,1803.2,1803.1,2.81831]
[1745784845338,2.83478,1803.2,1803.1,2.81831]
[1745784845540,3.26570344,1803.2,1803.1,2.81831]
[1745784845838,2.15692344,1803.2,1803.1,2.81831]
[1745784846939,3.26570344,1803.2,1803.1,2.81831]
[1745784847439,3.2658085,1803.2,1803.1,2.81831]
[1745784848938,3.2658085,1803.2,1803.0,5.4005]
[1745784849239,1.1089,1803.0,1802.9,2.76384]
[1745784849442,1.5399285,1803.0,1802.9,1.6549]
[1745784849737,3.2362285,1803.0,1802.9,1.6549]
[1745784849939,3.2362285,1803.0,1802.9,2.76386]
[1745784850328,3.2362285,1803.0,1802.9,6.48586]
[1745784851237,3.23578403,1803.0,1802.9,6.48586]
[1745784851841,2.12688403,1803.0,1802.9,6.48586]
[1745784852042,0.43058403,1803.0,1802.9,6.48586]
[1745784853241,5.49339,1803.1,1803.0,1.1089]
[1745784853446,5.92380348,1803.1,1803.0,3.6437]
[1745784853935,5.09530348,1803.1,1803.0,3.6437]
[1745784854339,5.09530348,1803.1,1803.0,7.3657]
[1745784855142,4.66489,1803.1,1803.0,3.6437]
[1745784855343,5.09522168,1803.1,1803.0,3.6437]
[1745784857137,5.0951717,1803.1,1803.0,3.6437]
[1745784858148,5.0951717,1803.1,1803.0,7.3657]
[1745784858349,3.9862817,1803.1,1803.0,7.3657]
[1745784859240,3.98627145,1803.1,1803.0,7.3657]
[1745784861048,3.556,1803.1,1803.0,7.3657]
[1745784861241,3.98633305,1803.1,1803.0,7.3657]
[1745784861742,0.43033305,1803.1,1803.0,7.3657]
[1745784862047,4.66468,1803.4,1803.3,1.10868]
[1745784862846,6.35788,1803.4,1803.3,1.10868]
[1745784863239,3.556,1803.4,1803.3,2.79528]
[1745784863439,4.66466,1803.4,1803.3,2.79528]
[1745784864649,3.2078,1803.5,1803.4,1.10866]
[1745784864945,3.2078,1803.5,1803.4,3.52516]
[1745784865243,3.2078,1803.5,1803.4,7.24716]
[1745784867041,1.6888,1803.7,1803.6,1.10853]
[1745784867249,2.79727,1803.7,1803.6,1.10853]
[1745784867747,2.79727,1803.7,1803.6,2.71303]
[1745784868451,1.10853,1803.6,1803.5,5.65965]
[1745784868650,2.68923,1803.6,1803.5,5.65969]
[1745784873945,3.11311413,1803.6,1803.5,5.65969]
[1745784874843,3.1130706,1803.6,1803.5,5.65969]
[1745784876449,3.1130706,1803.6,1803.5,7.24619]
[1745784876651,2.68923,1803.6,1803.5,7.24619]
[1745784876955,3.11300446,1803.6,1803.5,7.24619]
[1745784878658,3.11293712,1803.6,1803.5,7.24619]
[1745784882561,3.11308591,1803.6,1803.5,7.24619]
[1745784882759,2.00455591,1803.6,1803.5,7.24619]
[1745784883764,3.11308591,1803.6,1803.5,7.24619]
[1745784884457,2.68923,1803.6,1803.5,7.24619]
[1745784884662,2.00465894,1803.6,1803.5,7.24619]